[Event "Krakow Championship-A 2022"]
[Site "Krakow"]
[Date "2022.06.26"]
[Round "2.13"]
[White "Skytte, Rasmus"]
[Black "Balaji Sekar"]
[Result "1-0"]
[ECO "B22"]
[WhiteElo "2357"]
[BlackElo "1189"]
[Annotator "TA"]
[PlyCount "148"]
[EventDate "2022.06.25"]
[EventType "swiss"]
[EventCountry "POL"]
[SourceTitle "playchess.com"]
[Source "ChessBase"]
[SourceQuality "1"]
[TimeControl "40/5400+30:1800+30"]

{[%evp 22,148,14,0,10,-8,0,0,0,0,23,26,20,20,15,11,11,15,12,14,40,40,40,39,39,39,39,39,39,39,46,47,55,66,118,118,118,82,115,115,118,118,118,115,152,152,152,151,146,131,152,136,145,136,140,126,122,113,118,113,119,112,113,113,504,508,526,514,501,473,507,454,526,369,524,514,486,180,510,497,483,466,458,451,447,396,333,321,317,310,291,279,275,124,217,212,212,218,999,793,987,913,770,597,774,725,1855,1868,1505,1080,1341,1219,7209,6577,6183,6135,5727,5524,2529,2047,5197,4293,12818,7136,5181,5114,8629,7186,1870]} 1. e4 {[%emt 0:00:07][%cal Be2e4,Be4e5][%mdl 32]} c5 {[%emt 0:00:06]} 2. c3 {[%emt 0:00:30]} Nf6 {[%emt 0:00:06]} 3. e5 {[%emt 0:00:41]} Nd5 {[%emt 0:00:03]} 4. Nf3 {[%emt 0:00:35]} d6 {[%emt 0:00:10]} 5. exd6 {[%emt 0:01:32]} e6 {[%emt 0:02:07]} 6. g3 {[%emt 0:02:08]} Bxd6 {[%emt 0:01:56]} 7. Bg2 {[%emt 0:01:27]} Nc6 {[%emt 0:00:20]} 8. O-O {[%emt 0:01:06]} O-O {[%emt 0:00:40]} 9. d4 {[%emt 0:00:10]} cxd4 {[%emt 0:04:58]} 10. Nxd4 {[%emt 0:00:09]} Nxd4 {[%emt 0:03:50]} 11. Qxd4 {[%emt 0:01:26]} Qc7 {[%emt 0:01:56]} 12. Nd2 {[%emt 0:16:15] 12.c4 might become the main line.} Rd8 {[%emt 0:16:28] B22: Sicilian: 2 c3.} 13. Nb3 {[%emt 0:05:03] [#]} Nf6 $146 {[%emt 0:06:25][%cal Od6g3]} ({Predecessor:} 13... b5 14. Bg5 Rd7 15. Qg4 Rb8 16. Rfe1 Bf8 17. Rad1 Bb7 18. Rd4 Re8 19. Red1 g6 20. Qe2 {1-0 (38) Jirovsky,M (2459)-Gross,D (2399) Czech Republic 1999}) 14. Rd1 {[%emt 0:08:59]} e5 {[%emt 0:04:25] Inhibits Bf4. The position is equal.} 15. Qh4 {[%emt 0:00:49]} Be6 {[%emt 0:08:31]} 16. Bg5 {[%emt 0:01:50]} Be7 {[%emt 0:00:06]} 17. Bxf6 {[%emt 0:06:41]} Bxf6 {[%emt 0:00:03]} 18. Qb4 {[%emt 0:00:12]} Rab8 {[%emt 0:21:05]} 19. Qc5 {[%emt 0:05:34]} Qxc5 {[%emt 0:00:44]} 20. Nxc5 {[%emt 0:00:12]} b6 {[%emt 0:00:26]} 21. Nxe6 {[%emt 0:01:25]} fxe6 {[%emt 0:00:05]} 22. Be4 {[%emt 0:00:51]} Rxd1+ {[%emt 0:00:51]} 23. Rxd1 {[%emt 0:00:37]} Rd8 {[%emt 0:00:02] Against Rd7} 24. Rxd8+ Bxd8 $14 {[%emt 0:00:01][%mdl 4096] Endgame KB-KB} 25. Kf1 {[%emt 0:01:18]} h6 {[%emt 0:00:39]} 26. Ke2 {[%emt 0:00:07]} Kf8 {[%emt 0:00:59]} 27. Kd3 {[%emt 0:01:49]} Be7 {[%emt 0:10:12]} ({Black should try} 27... Bg5 $14) 28. Kc4 $1 $16 {[%emt 0:08:28]} Bc5 {[%emt 0:00:38]} 29. f3 {[%emt 0:02:45]} Ke7 {[%emt 0:09:46] [#]} 30. Kb5 $1 {[%emt 0:00:21]} a5 {[%emt 0:01:15]} 31. Kc6 {[%emt 0:02:36]} Be3 {[%emt 0:02:18]} 32. a4 {[%emt 0:07:41]} Bf2 {[%emt 0:01:58]} 33. b4 {[%emt 0:02:31]} Be3 {[%emt 0:00:38]} 34. bxa5 {[%emt 0:04:59]} bxa5 {[%emt 0:00:05]} 35. c4 {[%emt 0:00:53][%cal Bc3c4,Bc4c5,Bc5c6][%mdl 32]} Bd4 {[%emt 0:01:55]} 36. c5 {[%emt 0:01:14]} Be3 {[%emt 0:00:37]} 37. Bd3 {[%emt 0:01:38]} Bd4 {[%emt 0:00:23]} 38. Ba6 {[%emt 0:00:58]} Be3 {[%emt 0:00:35]} 39. Bc8 {[%emt 0:00:17]} Bd4 {[%emt 0:00:37]} 40. Kb5 {[%emt 0:01:54]} Be3 {[%emt 0:00:33]} 41. c6 {[%emt 0:34:26]} ({Much less strong is} 41. Kxa5 Bxc5 42. Kb5 Kd6 $14) 41... Kd6 {[%emt 0:31:17]} 42. Bd7 {[%emt 0:00:38]} Bd4 $2 {[%emt 0:00:00][%mdl 8192]} (42... Kc7 $16 {is more resistant.}) 43. Kxa5 $18 {[%emt 0:00:00]} Be3 {[%emt 0:00:00]} 44. Ka6 {[%emt 0:00:00]} Kc7 {[%emt 0:00:00]} 45. Kb5 {[%emt 0:00:00]} Kd6 {[%emt 0:00:00]} 46. a5 {[%emt 0:00:00][%cal Ba4a5,Ba5a6][%mdl 32]} Bg1 {[%emt 0:00:00]} 47. h3 {[%emt 0:00:00]} Bf2 {[%emt 0:00:00]} (47... g5 {was necessary.} 48. Bxe6 Bf2) 48. a6 {[%emt 0:00:00]} Ba7 {[%emt 0:00:00]} 49. Kc4 $2 {[%emt 0:00:00]} (49. h4 {g4 is the strong threat.} Ke7 50. h5) 49... Bb6 $2 {[%emt 0:00:00]} (49... Kc7 {is tougher.} 50. Kb5 (50. Bxe6 Kxc6 51. g4 Bf2 $16) 50... Kd6) 50. Kd3 {[%emt 0:00:00]} Bf2 {[%emt 0:00:00]} 51. Ke4 {[%emt 0:00:00]} Ba7 {[%emt 0:02:35]} 52. Be8 {[%emt 0:00:00]} Bc5 {[%emt 0:01:31]} 53. g4 {[%emt 0:00:00]} Ba7 {[%emt 0:00:34]} 54. Kd3 {[%emt 0:00:00]} Bb6 {[%emt 0:00:57]} 55. Ke2 {[%emt 0:00:00]} Ba7 {[%emt 0:00:05]} 56. Bd7 {[%emt 0:00:00]} Bb6 {[%emt 0:00:10]} 57. Kf1 {[%emt 0:00:00]} (57. Kd3 $18 {is more deadly.}) 57... Ba7 {[%emt 0:01:36] [#]} (57... g5 $16 {was called for.} 58. Ke2 Kc7) 58. Kg2 $1 {[%emt 0:00:00]} Bb6 {[%emt 0:00:26]} 59. Kg3 {[%emt 0:00:00] Strongly threatening Kh4.} Be3 $2 {[%emt 0:00:24]} (59... Ba7 60. h4 Kc7) 60. Kh4 {[%emt 0:00:00] White is clearly winning.} g6 {[%emt 0:00:09]} 61. Kg3 {[%emt 0:00:00]} Ba7 {[%emt 0:01:21]} 62. h4 {[%emt 0:00:00][%cal Bh3h4,Bh4h5][%mdl 32]} g5 {[%emt 0:00:44]} 63. h5 {[%emt 0:00:00] And now Kg2 would win.} Bc5 {[%emt 0:00:52]} 64. Kg2 {[%emt 0:00:15]} Ba7 {[%emt 0:00:37]} 65. Kf1 {[%emt 0:00:12]} Bc5 {[%emt 0:00:14]} 66. Ke2 {[%emt 0:00:35] Hoping for Kd3.} Bb6 {[%emt 0:00:37]} 67. Kd3 {[%emt 0:00:14]} Bc5 {[%emt 0:00:27]} 68. Ke4 {[%emt 0:00:28]} Ba7 {[%emt 0:00:06]} 69. Be8 {[%emt 0:00:41]} Bb8 {[%emt 0:00:02]} 70. Bf7 {[%emt 0:01:04][%cal Oc6c7] Threatens to win with c7!} Kxc6 {[%emt 0:00:23]} 71. Bxe6 {[%emt 0:00:10]} Kd6 {[%emt 0:00:04]} 72. Kf5 {[%emt 0:00:21] Intending Ba2 and mate.} Ba7 {[%emt 0:01:18]} 73. Ba2 {[%emt 0:03:24]} Be3 {[%emt 0:00:39]} 74. Kg6 {[%emt 0:04:16]} Ke7 {[%emt 0:00:05] Weighted Error Value: White=0.18 (very precise) /Black=0.40} 1-0

[Event "Krakow Championship-A 2022"]
[Site "Krakow"]
[Date "2022.06.26"]
[Round "2.14"]
[White "Danielyan, Vahe"]
[Black "Torkkola, Henri"]
[Result "1-0"]
[ECO "B13"]
[WhiteElo "2324"]
[BlackElo "2197"]
[Annotator "TA"]
[PlyCount "91"]
[EventDate "2022.06.25"]
[EventType "swiss"]
[EventCountry "POL"]
[SourceTitle "playchess.com"]
[Source "ChessBase"]
[SourceQuality "1"]
[TimeControl "40/5400+30:1800+30"]

{[%evp 11,90,18,17,12,7,9,1,0,15,0,6,-17,-16,-41,-27,-37,-30,-47,-55,-51,0,0,0,1,0,-159,-167,-139,-152,-141,-108,-132,-137,-175,-56,-128,-81,-146,-95,-139,-132,-156,-153,-262,-81,-97,-2,-273,-83,-312,384,387,1233,667,652,646,29986,29987,29990,29991,29993,29994,29994,29984,29984,29985,29996,837,29981,29982,29981,29981,29981,29982,29982,29983,29983,29983,29983,29984,29999]} 1. e4 {[%emt 0:00:04]} c6 {[%emt 0:00:06]} 2. d4 {[%emt 0:00:15]} d5 {[%emt 0:00:05]} 3. exd5 {[%emt 0:00:05]} cxd5 {[%emt 0:00:03]} 4. Bd3 {[%emt 0:00:05]} Nc6 {[%emt 0:00:10]} 5. c3 {[%emt 0:00:05]} Qc7 {[%emt 0:00:09]} 6. Ne2 {[%emt 0:00:17]} Bg4 {[%emt 0:00:08]} 7. O-O {[%emt 0:00:04] B13: Caro-Kann: Exchange Variation and Panov-Botvinnik Attack.} Nf6 {[%emt 0:00:54]} 8. f3 {[%emt 0:00:07]} Bd7 {[%emt 0:01:45] [#]} 9. Qe1 $146 {[%emt 0:02:30] The position is equal.} ({Predecessor:} 9. Bf4 e5 10. dxe5 Nxe5 11. Kh1 Bd6 12. Bc2 O-O-O 13. Nd2 Rhe8 14. Nd4 Nh5 15. Bg5 {½-½ (32) Vasquez Schroder,R (2441)-Santos Latasa,J (2575) chess24.com INT 2020}) 9... e6 {[%emt 0:07:11]} 10. Bg5 {[%emt 0:00:05]} Bd6 {[%emt 0:11:53]} 11. Bxf6 {[%emt 0:03:42]} gxf6 {[%emt 0:01:32]} (11... Bxh2+ $2 12. Kh1 gxf6 13. f4 $18) 12. f4 {[%emt 0:00:05]} Ne7 {[%emt 0:09:12]} 13. Nd2 {[%emt 0:01:05]} O-O-O {[%emt 0:04:04]} 14. Rc1 {[%emt 0:00:23]} Kb8 {[%emt 0:00:55]} 15. b4 {[%emt 0:00:12]} Ng6 {[%emt 0:04:15]} (15... Qb6 $15) 16. Qf2 $1 $11 {[%emt 0:00:41]} e5 {[%emt 0:09:31][%cal Be6e5,Be5e4,Be4d3][%mdl 32] White must now prevent ...e4.} 17. c4 {[%emt 0:00:04]} e4 {[%emt 0:00:12]} 18. c5 $2 {[%emt 0:11:21]} ({White should play} 18. cxd5 $11 exd3 19. Rxc7 dxe2 20. Rxb7+ Kxb7 21. Qxe2 Nxf4 22. Qf3) 18... exd3 $17 {[%emt 0:11:48]} 19. cxd6 {[%emt 0:00:08]} Qxd6 {[%emt 0:00:04]} 20. Nc3 {[%emt 0:00:21]} Rhe8 {[%emt 0:00:47]} 21. Nb3 {[%emt 0:02:22]} Bf5 {[%emt 0:04:21]} 22. Nc5 {[%emt 0:01:12]} Re7 {[%emt 0:09:09]} (22... b6 $1 $19 {[%cal Rb6c5]} 23. Nb5 Qxf4) 23. Rcd1 {[%emt 0:05:27]} (23. a4 $15) 23... Rde8 {[%emt 0:01:01]} ({Better is} 23... b6 24. Nxd3 Qc6) 24. Rd2 {[%emt 0:00:01]} (24. Nxd3 $142 Rc8 25. Qd2) 24... h5 {[%emt 0:04:03]} (24... Re3 $142 25. a4 b6 26. Na6+ Kb7) 25. a4 {[%emt 0:04:01]} Re3 {[%emt 0:08:03]} 26. a5 {[%emt 0:01:41]} h4 $1 {[%emt 0:00:35]} 27. b5 {[%emt 0:00:20]} (27. Rc1 $17) 27... b6 $2 {[%emt 0:00:54]} (27... h3 $19 {...hxg2 is the strong threat.} 28. g3 Nf8) 28. axb6 {[%emt 0:00:59]} axb6 {[%emt 0:00:01]} 29. Nb3 {[%emt 0:02:09][%mdl 8192]} (29. Ra2 $11 {and White stays safe.} bxc5 30. Rfa1) 29... R3e7 $2 {[%emt 0:01:39]} (29... Qa3 $19 30. Rb1 h3) 30. Ra2 $2 {[%emt 0:00:32]} (30. Nc5 $17) 30... Be4 $4 {[%emt 0:02:45][%mdl 8192]} (30... Qb4 $1 $19 {[%cal Rb4c3] and all is fine.} 31. Nxd5 Qxb3 32. Nxe7 Rxe7) 31. f5 $18 {[%emt 0:01:35] White stays focused until the end.} Qb4 $2 {[%emt 0:06:35]} (31... Qf4 32. fxg6 (32. Qxf4+ Nxf4 33. Rxf4 Rc8 $16) 32... Qxf2+ 33. Rfxf2 Bxg6 34. Nxd5 Re1+ 35. Rf1 R8e2) 32. Nxe4 {[%emt 0:00:53]} Rxe4 {[%emt 0:00:35]} 33. fxg6 {[%emt 0:00:05][%mdl 64] Discovered Attack} Qxb3 {[%emt 0:00:23]} 34. gxf7 {[%emt 0:00:10]} Rf8 {[%emt 0:00:46]} 35. Rfa1 {[%emt 0:00:10]} Rxf7 {[%emt 0:00:09]} 36. Ra8+ {[%emt 0:01:47]} Kc7 {[%emt 0:00:04]} 37. R8a7+ {[%emt 0:00:48]} Kb8 {[%emt 0:01:03]} 38. Rxf7 {[%emt 0:00:20]} Qc3 {[%emt 0:01:36] [#]} 39. Rfa7 {[%emt 0:00:50]} (39. Ra8+ $142 $3 {[%mdl 512]} Kxa8 40. Qa2+ Qa5 41. Qxd5+ Kb8 42. Qd8#) 39... f5 {[%emt 0:00:04]} 40. Ra8+ {[%emt 0:01:06] White mates.} Kc7 {[%emt 0:00:05]} 41. R1a7+ {[%emt 0:30:21]} Kd6 {[%emt 0:30:05]} 42. Rd8+ {[%emt 0:00:05]} Ke6 {[%emt 0:01:40] [#]} 43. Re8+ $1 {[%emt 0:00:04]} Kd6 {[%emt 0:00:04]} 44. Rxe4 {[%emt 0:00:09]} dxe4 {[%emt 0:00:08]} 45. Qf4+ {[%emt 0:00:12]} Ke6 {[%emt 0:00:05]} 46. Qe5# {[%emt 0:00:05] Weighted Error Value: White=0.53/Black=0.67} 1-0

[Event "Krakow Championship-A 2022"]
[Site "Krakow"]
[Date "2022.06.26"]
[Round "2.15"]
[White "Gahan M G"]
[Black "Lye, Lik Zang"]
[Result "1/2-1/2"]
[ECO "B22"]
[WhiteElo "2248"]
[BlackElo "2358"]
[Annotator "TA"]
[PlyCount "146"]
[EventDate "2022.06.25"]
[EventType "swiss"]
[EventCountry "POL"]
[SourceTitle "playchess.com"]
[Source "ChessBase"]
[SourceQuality "1"]
[TimeControl "40/5400+30:1800+30"]

{[%evp 12,145,18,18,37,31,7,14,24,-22,6,6,19,-39,-36,-27,-29,-54,-7,-62,-67,-72,-50,-71,-68,-166,-161,-134,-14,-39,-46,-51,0,0,0,0,0,0,24,13,24,27,29,15,15,0,5,0,0,3,22,-116,-106,-113,-105,-221,-213,-792,0,0,0,0,0,-9,-9,-9,0,-25,-20,-20,-20,-28,-28,-64,-29,-52,-9,-14,0,0,8,8,8,8,8,8,0,-26,-20,-20,-20,-20,-20,-24,-24,-24,-24,-26,0,0,0,0,0,0,0,0,0,0,0,0,0,0,0,0,0,0,0,0,0,0,0,0,0,0,0,0,0,0,0,0,0,0,0,0,0,0]} 1. e4 {[%emt 0:00:38]} c5 {[%emt 0:00:15]} 2. c3 {[%emt 0:00:06]} d5 {[%emt 0:00:14]} 3. exd5 {[%emt 0:00:02]} Qxd5 {[%emt 0:00:08]} 4. d4 {[%emt 0:00:04]} Nc6 {[%emt 0:00:17]} 5. Nf3 {[%emt 0:00:07]} Bg4 {[%emt 0:00:15]} 6. dxc5 {[%emt 0:00:08]} Qxd1+ {[%emt 0:00:37]} 7. Kxd1 {[%emt 0:00:06]} O-O-O+ {[%emt 0:00:24] B22: Sicilian: 2 c3.} 8. Ke1 {[%emt 0:00:59]} Nf6 {[%emt 0:12:14][%cal Bg8f6,Bf6d5,Bd5f4,Bf4d3][%mdl 32]} 9. Be3 {[%emt 0:05:27]} e5 {[%emt 0:06:01][%cal Be7e5,Be5e4][%mdl 32] [#]} 10. Bb5 $146 {[%emt 0:00:42]} (10. Nbd2 $142) ({Predecessor:} 10. b4 Nd5 11. h3 Bh5 12. a3 f5 13. g4 Bg6 14. Bg5 Re8 15. Bc4 e4 16. Nd4 {1-0 (47) Benet Catala,A (2145)-Regue Farran,E (1972) Tarragona 2018}) 10... e4 {[%emt 0:08:34]} 11. Bxc6 {[%emt 0:00:44]} bxc6 {[%emt 0:00:22]} 12. Nfd2 {[%emt 0:00:27]} (12. Nd4 $11) 12... Nd5 $1 $15 {[%emt 0:02:28][%mdl 1024] Black has compensation.} 13. h3 {[%emt 0:04:57]} Bh5 $36 {[%emt 0:04:58][%mdl 2048] Black has the initiative.} 14. Bd4 {[%emt 0:14:45]} f5 {[%emt 0:10:22]} (14... Nf4 $15 {is more appropriate.}) 15. Nc4 {[%emt 0:05:41]} (15. Kf1 $11) 15... Nf4 {[%emt 0:09:36][%cal Of8c5]} 16. g4 {[%emt 0:05:46]} fxg4 {[%emt 0:03:55]} 17. hxg4 {[%emt 0:00:51]} Nd3+ {[%emt 0:01:56]} 18. Ke2 {[%emt 0:04:11]} (18. Kf1 $15 Bxg4 19. Nbd2) 18... Bxg4+ $19 {[%emt 0:01:09]} 19. Ke3 {[%emt 0:00:05]} Bf3 {[%emt 0:02:28]} ({Black should try} 19... Bxc5 $17 20. Rg1 Bh5) 20. Rh3 {[%emt 0:02:02]} (20. Nbd2 $5 {[%cal Rd2f3]} Bxh1 21. Rxh1 Nxc5 22. Ne5 $15) 20... Ne1 {[%emt 0:10:45]} 21. Kd2 {[%emt 0:04:44] Inhibits Nc2.} Bg4 {[%emt 0:03:08]} (21... Ng2 $15 22. b4 Nf4 23. Rxf3 exf3) 22. Rg3 $11 {[%emt 0:02:59] Dancing on a razor blade.} Nf3+ {[%emt 0:00:40]} 23. Ke3 $1 {[%emt 0:01:11]} h5 {[%emt 0:01:32][%cal Of8c5] Strongly threatening ...Bxc5!} 24. Nbd2 {[%emt 0:04:05]} Nh4 {[%emt 0:13:45]} 25. Rgg1 {[%emt 0:08:51]} Be7 {[%emt 0:03:03]} 26. Nxe4 {[%emt 0:01:03] aiming for Ne5. Pair of Knights!} ({Don't blunder} 26. Nd6+ $2 Bxd6 27. cxd6 Rxd6 $19) 26... Rhe8 {[%emt 0:00:52] [#]} ({But not} 26... Nf5+ 27. Kd3 $16) 27. Rxg4 $1 {[%emt 0:00:40]} hxg4 {[%emt 0:00:24]} 28. Kf4 {[%emt 0:00:07]} Rf8+ {[%emt 0:01:31]} 29. Kxg4 {[%emt 0:00:05] Black must now prevent Ned6+. Active counter play!} Nf5 {[%emt 0:01:02] Against Ned6+} 30. Be5 {[%emt 0:03:24]} Rd3 {[%emt 0:00:51]} 31. Bf4 {[%emt 0:04:27]} (31. Rh1 $11 {keeps the balance.}) 31... Nh6+ $1 $17 {[%emt 0:01:26]} 32. Bxh6 {[%emt 0:00:05]} gxh6 {[%emt 0:00:05]} 33. Rh1 {[%emt 0:07:34] [#]} (33. Ne3 $17) 33... Rdf3 $1 $19 {[%emt 0:00:48]} 34. Ncd2 $2 {[%emt 0:02:08] [#]} (34. Ncd6+ Bxd6 35. Nxd6+ Kb8 36. Rh2 (36. Rxh6 $2 Rxf2 37. b4 Rg8+ 38. Kh3 Rf3+ 39. Kh2 Rxc3 $19)) 34... R3f4+ $2 {[%emt 0:00:48]} (34... h5+ $1 $19 35. Kxh5 R3f4) 35. Kg3 $11 {[%emt 0:00:42]} Bg5 {[%emt 0:00:22]} 36. Rh5 {[%emt 0:01:59]} Kd7 {[%emt 0:00:36]} 37. b4 {[%emt 0:00:40]} R4f5 {[%emt 0:00:22]} 38. Nxg5 {[%emt 0:02:10]} hxg5 {[%emt 0:00:28][%mdl 4096] Endgame KRR-KRN} 39. Ne4 {[%emt 0:00:12]} Rf3+ {[%emt 0:00:36]} 40. Kg2 {[%emt 0:00:05]} R3f4 {[%emt 0:00:26]} 41. Rh7+ {[%emt 0:30:47]} Ke6 {[%emt 0:30:31]} 42. Nxg5+ {[%emt 0:02:51]} Kd5 {[%emt 0:00:00] Hoping for ...Rg4+.} (42... Ke5 $5 {[%cal Rf4g4]} 43. Kg3 Rxf2 $15) 43. f3 {[%emt 0:00:00] Inhibits Rg4+.} R4f5 {[%emt 0:00:00]} (43... a5 $5 {[%cal Ra5b4]}) 44. Rg7 {[%emt 0:00:00]} Ke5 {[%emt 0:00:00] Threatens to win with ...Kf6.} 45. Rg6 {[%emt 0:00:00]} R8f6 {[%emt 0:00:00] Inhibits Re6+.} 46. Rg8 {[%emt 0:00:00]} Kf4 {[%emt 0:00:00]} 47. Ne4 {[%emt 0:00:00]} Rf8 {[%emt 0:00:00]} 48. Rxf8 {[%emt 0:00:00]} Rxf8 {[%emt 0:00:00] KR-KN} 49. a4 {[%emt 0:00:00]} Ke3 {[%emt 0:01:03]} 50. b5 {[%emt 0:00:00]} Rg8+ {[%emt 0:02:14]} 51. Kf1 $1 {[%emt 0:00:00]} Kxf3 {[%emt 0:00:44]} 52. Nd6 {[%emt 0:00:00]} cxb5 {[%emt 0:00:49]} 53. axb5 {[%emt 0:00:00]} Rg5 {[%emt 0:00:43]} 54. Nb7 {[%emt 0:00:00]} Rd5 {[%emt 0:01:07][%cal Rd5d1]} 55. Ke1 {[%emt 0:00:00] Inhibits Rd1+. The position is equal.} Ke3 {[%emt 0:00:25]} 56. c4 {[%emt 0:04:14]} Rh5 {[%emt 0:00:18][%cal Rh5h1]} (56... Rg5 $5 57. Kf1 Rf5+ 58. Ke1 Kd4 $11) 57. Kf1 $1 {[%emt 0:00:09]} Kd4 {[%emt 0:00:39]} 58. c6 {[%emt 0:04:47] And now c7 would win.} Rh7 {[%emt 0:00:28]} 59. c5 {[%emt 0:02:09] b6 is the strong threat.} Kd5 {[%emt 0:00:22]} 60. Nd8 {[%emt 0:03:18]} Kxc5 {[%emt 0:00:43]} 61. c7 $1 {[%emt 0:00:25][%mdl 64] Decoy} Rxc7 {[%emt 0:00:26]} 62. Ne6+ {[%emt 0:00:04]} Kb6 {[%emt 0:00:14] ( -> ...Rf7+)} 63. Nxc7 {[%emt 0:00:03]} Kxc7 {[%emt 0:00:02] KP-KP} 64. Ke2 {[%emt 0:00:05]} Kb6 {[%emt 0:00:03]} 65. Kd3 {[%emt 0:00:05]} Kxb5 {[%emt 0:00:04] KP-K} 66. Kc2 {[%emt 0:00:02]} a5 {[%emt 0:00:07][%cal Ba7a5,Ba5a4,Ba4a3][%mdl 32]} 67. Kb3 {[%emt 0:00:03][%cal Bc2b3,Bb3a3,Ba3a2,Ba2b2][%mdl 32]} a4+ {[%emt 0:00:24]} 68. Ka3 {[%emt 0:00:04]} Ka5 {[%emt 0:00:04][%cal Bb5a5,Ba5b4,Bb4a4,Ba4b3][%mdl 32]} 69. Ka2 {[%emt 0:00:04]} Kb4 {[%emt 0:00:03]} 70. Kb2 {[%emt 0:00:02]} a3+ {[%emt 0:00:03]} 71. Ka2 {[%emt 0:00:03]} Ka4 {[%emt 0:00:04]} 72. Kb1 {[%emt 0:00:02]} Kb3 {[%emt 0:00:04]} 73. Ka1 {[%emt 0:00:02]} a2 {[%emt 0:00:09] Weighted Error Value: White=0.28 (precise) /Black=0.19 (very precise)} 1/2-1/2

[Event "Krakow Championship-A 2022"]
[Site "Krakow"]
[Date "2022.06.26"]
[Round "2.16"]
[White "Seemann, Jakub"]
[Black "Turski, Bartlomiej"]
[Result "1-0"]
[ECO "D72"]
[WhiteElo "2363"]
[BlackElo "2192"]
[Annotator "TA"]
[PlyCount "85"]
[EventDate "2022.06.25"]
[EventType "swiss"]
[EventCountry "POL"]
[SourceTitle "playchess.com"]
[Source "ChessBase"]
[SourceQuality "1"]
[TimeControl "40/5400+30:1800+30"]

{[%evp 14,85,36,49,81,77,85,79,97,84,84,80,91,112,107,111,116,88,156,58,76,0,0,0,0,0,0,0,10,13,38,38,88,0,0,0,0,4,69,0,0,0,0,0,230,226,264,235,229,137,229,210,226,230,220,217,452,447,480,434,579,535,654,615,612,609,602,600,902,887,881,858,720,702]} 1. d4 {[%emt 0:00:02]} Nf6 {[%emt 0:00:08][%cal Bg8f6,Bf6d5,Bd5b6,Bb6a4][%mdl 32]} 2. c4 {[%emt 0:00:05]} g6 {[%emt 0:00:07]} 3. g3 {[%emt 0:00:04]} Bg7 {[%emt 0:00:11]} 4. Bg2 {[%emt 0:00:06]} d5 {[%emt 0:00:33]} 5. cxd5 {[%emt 0:00:06]} Nxd5 {[%emt 0:00:07]} 6. e4 {[%emt 0:00:05]} Nb6 {[%emt 0:01:02]} 7. Ne2 {[%emt 0:00:04]} O-O {[%emt 0:02:41]} 8. O-O {[%emt 0:01:41]} c5 {[%emt 0:04:58] D72: Fianchetto Grünfeld: 5 cxd5 Nxd5 6 e4 Nb6 (without Nf3).} 9. dxc5 {[%emt 0:00:06] aiming for Qxd8.} Qxd1 {[%emt 0:00:08]} 10. Rxd1 {[%emt 0:00:02]} Na4 {[%emt 0:03:15] White is better.} 11. Nbc3 {[%emt 0:00:07]} Nxc5 {[%emt 0:01:13]} 12. Be3 {[%emt 0:00:05]} Nca6 {[%emt 0:01:37] [#]} 13. a3 $146 {[%emt 0:06:03] White is more active.} ({Predecessor:} 13. f4 Nc6 14. e5 f6 15. exf6 Bxf6 16. Rd2 Be6 17. Nd5 Bxd5 18. Bxd5+ Kg7 19. Bxc6 bxc6 {½-½ (39) Delorme,A (2488)-Jerez Perez,A (2373) Catalunya 2014}) 13... Bg4 {[%emt 0:08:56]} 14. f3 {[%emt 0:00:24]} Be6 {[%emt 0:03:43]} 15. b4 {[%emt 0:00:18]} Nd7 {[%emt 0:02:31] [#]} (15... Nc7 $142) 16. Nd4 {[%emt 0:07:27]} (16. f4 $1 $16) 16... Ne5 {[%emt 0:04:08]} 17. Nd5 {[%emt 0:03:57]} (17. Bf2 $16) 17... Bxd5 $11 {[%emt 0:03:23]} 18. exd5 {[%emt 0:00:03]} Nc7 {[%emt 0:04:44]} 19. Bf2 {[%emt 0:30:00][%cal Od5d6]} Rad8 {[%emt 0:12:17]} 20. Nb3 {[%emt 0:03:12][%cal Bd4b3,Bb3a5,Ba5c4][%mdl 32]} Nc4 {[%emt 0:06:21]} (20... Rxd5 21. f4 Rd3 22. Rab1 Rxd1+ 23. Rxd1 $16) 21. Rac1 {[%emt 0:02:14]} b5 {[%emt 0:00:05]} (21... Nb2 $5 {[%cal Rb2d1]} 22. Rd2 Nxd5 $14) 22. Na5 {[%emt 0:02:42]} Bb2 {[%emt 0:04:18]} ({Black should play} 22... Rxd5 $14 23. Nc6 (23. Nxc4 Rxd1+ 24. Rxd1 bxc4 $15) 23... Bf6) 23. Rxc4 {[%emt 0:00:55]} ({White should try} 23. Rc2 $16 Bxa3 24. Nc6 (24. Nxc4 bxc4 25. f4 Bxb4 $14)) 23... bxc4 {[%emt 0:00:56]} 24. Nxc4 {[%emt 0:00:06]} Bf6 {[%emt 0:01:37]} 25. f4 {[%emt 0:00:53]} a6 {[%emt 0:08:32]} (25... Rc8 $11) 26. Bf3 {[%emt 0:03:02]} (26. a4 $14) 26... Nb5 {[%emt 0:03:53]} 27. Bc5 {[%emt 0:03:50]} Rfe8 {[%emt 0:03:16]} 28. Kf2 {[%emt 0:01:59]} e5 $2 {[%emt 0:04:35] White stays focused until the end.} (28... Nc3 $11 {and Black has nothing to worry.} 29. Rd3 Na4) 29. fxe5 $18 {[%emt 0:01:13]} ({Stronger than} 29. Nxe5 Bxe5 30. fxe5 Rxe5 $11) 29... Bxe5 {[%emt 0:00:03] [#]} 30. d6 $1 {[%emt 0:00:11] d7 is the strong threat.} Re6 {[%emt 0:06:00][%cal Re5d6]} 31. d7 {[%emt 0:02:56]} ({White has to play} 31. Nxe5 $18 Rxe5 32. Rd3 (32. d7 Nc3 $18)) 31... Nc3 {[%emt 0:03:28]} (31... Bb8 $16 {is a better defense.} 32. Na5 Bd6) 32. Rd3 {[%emt 0:01:22][%mdl 1024] White has strong compensation.} Na4 {[%emt 0:00:04]} 33. Be3 {[%emt 0:01:43] Black must now prevent Bg4. A strong pair of Bishops.} Bf6 {[%emt 0:03:32]} 34. Bf4 {[%emt 0:02:14] Hoping for Bc7.} Kf8 $2 {[%emt 0:02:05]} (34... Nb2 35. Nxb2 Bxb2) 35. Bc7 {[%emt 0:00:53] White is clearly winning.} h5 {[%emt 0:02:05]} 36. Na5 {[%emt 0:01:06]} Nb2 {[%emt 0:01:22]} 37. Rd2 {[%emt 0:00:48]} Bc3 {[%emt 0:00:23]} 38. Rd5 {[%emt 0:00:47]} Bf6 {[%emt 0:00:36]} 39. Nb7 {[%emt 0:00:27]} Ra8 {[%emt 0:00:35]} 40. Nc5 {[%emt 0:02:12]} Bd8 {[%emt 0:00:21]} 41. Nxe6+ {[%emt 0:30:26]} fxe6 {[%emt 0:30:01]} 42. Rd2 {[%emt 0:00:19][%csl LRa8,LRb2]} Bxc7 {[%emt 0:01:07]} 43. Bxa8 {[%emt 0:00:05] Weighted Error Value: White=0.20 (precise) /Black=0.44} 1-0